bitfinex/quotes_SOLUSD_20241209
["timestamp","ask_amount","ask_price","bid_price","bid_amount"]
[1733718050247,0.12549,232.05,231.94,13.36356289]
[1733718050410,6.28679,232.05,231.94,13.36356289]
[1733718051447,0.80810303,232.04,231.92,13.36356289]
[1733718051642,0.80810303,232.04,231.93,13.36356289]
[1733718052016,0.12549,232.03,231.93,13.36356289]
[1733718052213,0.12549,232.03,231.9,13.36356289]
[1733718052444,23.902374,232.03,231.9,13.36356289]
[1733718052744,0.80827914,232.02,231.91,13.36356289]
[1733718053049,0.12549,232.01,231.91,13.36356289]
[1733718053927,0.12549,232.01,231.92,13.36356289]
[1733718054522,6.1613,232.05,231.96,13.36356289]
[1733718054763,6.1613,232.05,231.97,13.36356289]
[1733718054920,0.80807759,232.04,231.95,13.36356289]
[1733718055240,0.80807759,232.04,231.93,13.36356289]
[1733718055451,0.80807759,232.04,231.92,13.36356289]
[1733718055657,0.80807759,232.04,231.91,33.36356289]
[1733718056018,23.902374,232.03,231.91,33.36356289]
[1733718056216,23.902374,232.01,231.88,13.86077009]
[1733718056541,23.776884,232.03,231.88,13.86077009]
[1733718056542,0.12549,231.99,231.88,13.86077009]
[1733718056729,0.12549,231.99,231.89,13.36356289]
[1733718056930,0.12549,232.0,231.89,13.36356289]
[1733718057139,23.776884,231.99,231.88,0.4972072]
[1733718057445,0.12549,231.97,231.88,0.4972072]
[1733718057638,0.12549,232.01,231.9,13.36356289]
[1733718057835,24.71064513,232.01,231.91,13.36356289]
[1733718058246,0.93376113,232.01,231.9,13.36356289]
[1733718058417,0.93376113,232.01,231.88,0.4972072]
[1733718058753,0.12549,231.99,231.88,0.4972072]
[1733718058925,0.9338824,231.99,231.88,0.4972072]
[1733718059929,0.12549,231.97,231.88,0.4972072]
[1733718060151,0.93394215,231.97,231.88,0.4972072]
[1733718060532,0.12549,231.95,231.88,0.4972072]
[1733718060744,0.9339902,231.95,231.88,0.4972072]
[1733718061251,0.12549,231.93,231.88,0.4972072]
[1733718061425,0.12549,231.91,231.88,0.4972072]
[1733718061623,0.93412418,231.91,231.88,0.4972072]
[1733718062043,0.12549,231.91,231.88,0.4972072]
[1733718062245,0.93403762,231.92,231.88,0.4972072]
[1733718065246,23.776884,231.91,231.88,0.4972072]
[1733718065434,0.12549,231.89,231.88,0.4972072]
[1733718069882,6.0319,231.96,231.88,0.4972072]
[1733718070165,6.0319,231.96,231.88,13.86077009]
[1733718070373,6.0319,231.96,231.88,0.4972072]
[1733718070875,0.80846553,231.95,231.88,0.4972072]
[1733718071674,6.0319,231.96,231.88,0.4972072]
[1733718071862,0.93392626,231.95,231.88,0.4972072]
[1733718073483,6.0319,231.96,231.88,0.4972072]
[1733718075803,0.12549,231.95,231.88,0.4972072]
[1733718076093,0.12549,231.96,231.88,0.4972072]
[1733718077110,0.80842012,231.97,231.88,0.4972072]
[1733718077290,0.12549,231.97,231.88,0.4972072]
[1733718077461,6.6663,232.01,231.88,13.86077009]
[1733718077667,0.80826968,232.0,231.89,13.36356289]
[1733718077901,0.80828562,232.06,231.89,13.36356289]
[1733718078066,0.80828562,232.06,231.88,13.86077009]
[1733718078583,0.80828562,232.06,231.89,13.36356289]
[1733718078781,0.12549,232.05,231.88,13.86077009]
[1733718078976,23.902374,232.03,231.9,20.0]
[1733718079161,0.80831036,232.02,231.9,20.0]
[1733718079364,23.902374,232.01,231.88,0.4972072]
[1733718079587,23.902374,231.99,231.88,0.4972072]
[1733718079869,0.12549,231.97,231.88,0.4972072]
[1733718080065,0.8084374,231.98,231.88,0.4972072]
[1733718080269,23.902374,232.03,231.88,0.4972072]
[1733718080502,20.0,232.0,231.88,0.4972072]
[1733718080804,0.12549,231.99,231.88,0.4972072]
[1733718082266,0.80831926,232.06,231.91,13.36356289]
[1733718082993,0.80831926,232.06,231.92,13.36356289]
[1733718083494,0.12549,232.05,231.92,13.36356289]
[1733718084890,0.12549,232.05,231.93,1.6018]
[1733718085101,0.12549,232.05,231.93,14.96536289]
[1733718085283,0.80807519,232.06,231.95,13.36356289]
[1733718085495,0.80806356,232.11,231.93,21.00326289]
[1733718085973,0.80806356,232.11,231.93,7.6397]
[1733718086493,0.12549,232.08,231.93,21.00326289]
[1733718086675,20.0,232.07,231.93,21.00326289]
[1733718086877,0.80807535,232.06,231.93,21.00326289]
[1733718087083,0.80807535,232.06,231.94,13.36356289]
[1733718087285,0.80807535,232.06,231.93,7.6397]
[1733718087673,0.80807535,232.06,231.93,21.00326289]
[1733718088081,0.80807535,232.06,231.93,7.6397]
[1733718088281,0.80807535,232.06,231.93,21.00326289]
[1733718088892,0.12549,232.05,231.93,1.6018]
[1733718092584,23.902374,232.05,231.92,20.0]
[1733718092902,23.902374,232.03,231.9,20.0]
[1733718093081,23.902374,232.01,231.9,20.0]
[1733718093288,0.12549,231.99,231.9,20.0]
[1733718093471,0.12549,231.99,231.89,20.0]
[1733718093671,0.12549,231.99,231.91,20.0]
[1733718093871,23.902374,231.99,231.88,2.1448072]
[1733718094095,0.12549,231.97,231.88,0.4972072]
[1733718094308,23.902374,231.97,231.88,0.4972072]
[1733718094472,0.12549,231.95,231.88,0.4972072]
[1733718094673,0.80856701,231.96,231.88,0.4972072]
[1733718094674,0.12549,231.93,231.88,0.4972072]
[1733718094899,0.93410894,231.93,231.88,0.4972072]
[1733718095605,23.776884,231.92,231.88,0.4972072]
[1733718095914,0.93416528,231.91,231.88,0.4972072]
[1733718097691,23.776884,231.9,231.88,0.4972072]
[1733718097937,24.71115374,231.89,231.88,0.4972072]
[1733718099187,20.0,231.86,231.74,6.3714]
[1733718099405,20.8088511,231.85,231.74,6.3714]
[1733718099910,0.8088511,231.85,231.74,6.3714]
[1733718100811,0.8088511,231.85,231.75,13.36356289]
[1733718101218,0.80883406,231.88,231.78,13.36356289]
[1733718101379,0.80883406,231.88,231.79,13.36356289]
[1733718101578,6.0611,231.92,231.8,13.36356289]
[1733718101579,0.80869371,231.91,231.8,13.36356289]
[1733718102005,0.80869371,231.91,231.79,13.36356289]
[1733718102876,0.12549,231.9,231.79,13.36356289]
[1733718103087,0.12549,231.88,231.77,20.0]
[1733718103309,23.902374,231.88,231.74,6.3714]
[1733718103511,0.12549,231.86,231.74,6.3714]
[1733718104705,23.902374,231.86,231.72,14.97886289]
[1733718105021,0.12549,231.84,231.72,14.97886289]
[1733718106222,23.902374,231.84,231.72,1.6153]
[1733718106390,23.776884,231.86,231.73,20.0]
[1733718106391,0.12549,231.82,231.73,20.0]
[1733718106594,0.12549,231.82,231.72,1.6153]
[1733718107419,23.902374,231.82,231.72,1.6153]
[1733718107600,0.12549,231.8,231.72,1.6153]
[1733718108319,0.12549,231.8,231.69,13.36356289]
[1733718108320,0.12549,231.8,231.68,20.01116289]
[1733718108800,0.12549,231.8,231.69,13.36356289]
[1733718109493,0.12549,231.8,231.68,6.6476]
[1733718109494,0.12549,231.8,231.68,20.01116289]
[1733718109997,23.902374,231.8,231.68,6.6476]
[1733718110194,0.12549,231.78,231.68,6.6476]
[1733718110393,0.12549,231.78,231.67,1.6589]
[1733718110699,0.12549,231.78,231.67,15.02246289]
[1733718110909,0.12549,231.78,231.68,20.0]
[1733718111099,0.12549,231.78,231.68,13.36356289]
[1733718111710,0.80909669,231.79,231.68,13.36356289]
[1733718112020,0.12549,231.8,231.69,13.36356289]
[1733718112202,0.80904334,231.79,231.68,20.0]
[1733718113021,0.80904334,231.79,231.68,33.36356289]
[1733718113196,0.80904634,231.78,231.68,33.36356289]
[1733718113529,0.93454283,231.8,231.68,33.36356289]
[1733718113889,0.93454283,231.8,231.68,20.0]
[1733718114694,43.776884,231.79,231.67,1.6589]
[1733718114893,0.12549,231.77,231.67,1.6589]
[1733718115886,0.12549,231.77,231.65,0.4972072]
[1733718116116,23.902374,231.77,231.65,0.4972072]
[1733718116393,0.12549,231.75,231.65,0.4972072]
[1733718119007,20.0,231.79,231.65,13.86077009]
[1733718119212,0.80907239,231.78,231.66,13.36356289]
[1733718119509,0.80907239,231.78,231.67,13.36356289]
[1733718119716,0.93451858,231.81,231.68,13.36356289]
[1733718119910,0.93451858,231.81,231.67,33.36356289]
[1733718120499,0.12549,231.79,231.67,20.0]
[1733718120699,23.776884,231.78,231.67,20.0]
[1733718120900,0.80908575,231.77,231.68,20.0]
[1733718121118,23.776884,231.78,231.68,20.0]
[1733718121325,0.80908919,231.77,231.68,20.0]
[1733718121621,23.776884,231.78,231.68,20.0]
[1733718121925,23.776884,231.78,231.65,13.86077009]
[1733718121926,0.80907374,231.77,231.67,20.0]
[1733718122131,0.80907374,231.77,231.68,20.0]
[1733718122291,6.3622,231.82,231.67,20.0]
[1733718122497,0.80904025,231.81,231.67,33.36356289]
[1733718123523,0.80904025,231.81,231.67,20.0]
[1733718124333,23.776884,231.8,231.67,20.0]
[1733718124641,23.776884,231.78,231.67,20.0]
[1733718124806,0.8091028,231.77,231.67,20.0]
[1733718125241,23.776884,231.78,231.68,20.0]
[1733718125946,23.776884,231.78,231.67,20.0]
[1733718126239,23.776884,231.81,231.67,33.36356289]
[1733718126444,0.80897298,231.8,231.67,33.36356289]
[1733718127314,0.80897607,231.81,231.67,33.36356289]
[1733718127754,0.80897607,231.81,231.67,20.0]
[1733718128049,23.902374,231.8,231.67,20.0]
[1733718128222,23.902374,231.78,231.67,20.0]
[1733718128539,23.902374,231.8,231.67,20.0]
[1733718128540,0.80909453,231.77,231.67,20.0]
[1733718128745,23.902374,231.78,231.67,20.0]
[1733718128935,23.902374,231.78,231.65,0.4972072]
[1733718128936,0.12549,231.75,231.65,0.4972072]
[1733718129232,23.776884,231.74,231.65,0.4972072]
[1733718129445,0.9347612,231.73,231.65,0.4972072]
[1733718130943,0.12549,231.71,231.65,0.4972072]
[1733718131242,0.93482886,231.71,231.65,0.4972072]
[1733718134442,0.12549,231.69,231.65,0.4972072]
[1733718134609,0.93489974,231.69,231.65,0.4972072]
[1733718135006,6.4556,231.73,231.65,0.4972072]
[1733718135208,0.80929002,231.72,231.65,0.4972072]
[1733718136649,6.4556,231.73,231.65,0.4972072]
[1733718136821,0.80925293,231.81,231.65,0.4972072]
[1733718137142,6.6288,231.8,231.65,13.86077009]
[1733718137345,6.6288,231.8,231.67,13.36356289]
[1733718137346,0.80910455,231.79,231.67,13.36356289]
[1733718138143,0.80910455,231.79,231.65,15.42337009]
[1733718138827,23.902374,231.78,231.65,15.42337009]
[1733718139015,0.80908226,231.77,231.65,15.42337009]
[1733718139211,6.6288,231.8,231.7,13.36356289]
[1733718139416,0.80907805,231.85,231.7,13.36356289]
[1733718140344,0.80907805,231.85,231.71,13.36356289]
[1733718140550,20.0,231.73,231.65,0.4972072]
[1733718140846,6.3953,231.76,231.65,0.4972072]
[1733718140847,20.0,231.69,231.65,0.4972072]
[1733718141022,0.8093893,231.68,231.65,0.4972072]
[1733718141223,20.0,231.69,231.65,0.4972072]
[1733718142126,0.80934589,231.68,231.65,0.4972072]
[1733718145426,30.279674,231.67,231.65,0.4972072]
[1733718145749,20.0,231.63,231.51,13.36356289]
[1733718146121,20.0,231.64,231.51,13.36356289]
[1733718147324,20.0,231.64,231.54,13.36356289]
[1733718147529,30.154184,231.67,231.54,13.36356289]
[1733718147931,6.3382,231.74,231.54,13.36356289]
[1733718148156,23.776884,231.68,231.55,13.36356289]
[1733718148365,0.80942978,231.67,231.55,13.36356289]
[1733718148529,0.80942949,231.67,231.56,13.36356289]
[1733718148730,23.902374,231.7,231.57,13.36356289]
[1733718148956,0.80939191,231.69,231.57,13.36356289]
[1733718149329,24.58627995,231.7,231.57,13.36356289]
[1733718149756,23.776884,231.71,231.59,13.36356289]
[1733718150243,0.80931621,231.7,231.59,13.36356289]
[1733718150661,0.80931621,231.7,231.58,1.5891]
[1733718152031,0.80934078,231.73,231.58,14.95266289]
[1733718152255,23.902374,231.72,231.58,14.95266289]
[1733718152432,0.80929116,231.71,231.58,14.95266289]
[1733718152640,0.80929116,231.71,231.58,1.5891]
[1733718153632,0.80929116,231.71,231.51,10.7986]
[1733718153633,20.0,231.65,231.51,1.5891]
[1733718153837,31.16514807,231.64,231.51,1.5891]
[1733718154234,31.16514807,231.64,231.45,6.5326]
[1733718154235,23.902374,231.6,231.45,6.5326]
[1733718154430,0.80976855,231.59,231.45,6.5326]
[1733718154860,20.0,231.57,231.45,6.5326]
[1733718155370,24.71217398,231.56,231.45,5.0]
[1733718155571,0.12549,231.52,231.45,5.0]
[1733718155777,24.7124088,231.52,231.45,5.0]
[1733718158738,24.5869188,231.52,231.45,5.0]
[1733718158939,20.0,231.54,231.45,5.0]
[1733718159672,23.776884,231.55,231.45,5.0]
[1733718159850,0.80988288,231.54,231.45,5.0]
[1733718160766,23.776884,231.55,231.45,5.0]
[1733718160935,0.80987934,231.54,231.45,5.0]
[1733718161988,23.776884,231.55,231.45,5.0]
[1733718162287,0.80987919,231.54,231.45,5.0]
[1733718162482,23.776884,231.55,231.45,5.0]
[1733718162662,0.80988456,231.54,231.45,5.0]
[1733718162854,23.776884,231.55,231.45,5.0]
[1733718163061,0.80988347,231.54,231.45,5.0]
[1733718163272,0.12549,231.56,231.45,5.0]
[1733718163473,0.80987869,231.63,231.48,13.36356289]
[1733718163688,0.80987869,231.63,231.51,13.36356289]
[1733718163986,0.80987869,231.63,231.46,33.36356289]
[1733718164157,0.80987869,231.63,231.47,13.36356289]
[1733718164485,0.80987869,231.63,231.48,13.36356289]
[1733718164896,23.902374,231.62,231.47,13.36356289]
[1733718165196,0.12549,231.48,231.45,5.0]
[1733718165528,0.12549,231.46,231.45,5.0]
[1733718165693,24.71258594,231.46,231.45,5.0]
[1733718167877,0.81021194,231.46,231.45,5.0]
[1733718168061,0.12549,231.46,231.45,5.0]
[1733718172005,23.902374,231.46,231.45,5.0]
[1733718172574,24.71269241,231.46,231.45,5.0]
[1733718173501,23.902374,231.46,231.45,5.0]
[1733718173676,23.776884,231.46,231.45,5.0]
[1733718175905,23.902374,231.46,231.45,5.0]
[1733718178602,0.81031602,231.49,231.45,5.0]
[1733718178776,0.12549,231.48,231.45,5.0]
[1733718180914,23.776884,231.47,231.45,5.0]
[1733718181214,24.71271308,231.46,231.45,5.0]
[1733718181886,20.0,231.43,231.42,0.4972072]
[1733718182093,20.93589613,231.43,231.42,0.4972072]
[1733718182495,44.71278013,231.43,231.42,0.4972072]
[1733718184115,0.12549,231.38,231.33,1.5922]
[1733718184329,0.12549,231.36,231.28,1.5408]
[1733718184534,0.93605515,231.36,231.28,1.5408]
[1733718185112,0.12549,231.34,231.28,1.5408]
[1733718185308,0.93612999,231.34,231.28,1.5408]
[1733718186327,23.776884,231.33,231.25,6.3]
[1733718186530,0.93623438,231.32,231.25,6.3]
[1733718186724,0.93623438,231.32,231.24,10.0]
[1733718186912,0.12549,231.3,231.24,10.0]
[1733718187111,0.93629457,231.3,231.24,10.0]
[1733718190219,0.81080457,231.3,231.24,10.0]
[1733718190431,0.12549,231.32,231.24,10.0]
[1733718190617,23.776884,231.33,231.24,10.0]
[1733718190820,0.12549,231.31,231.24,10.0]
[1733718191021,0.81070979,231.34,231.24,23.36356289]
[1733718191348,6.0708,231.43,231.25,13.36356289]
[1733718191551,0.81058021,231.42,231.25,13.36356289]
[1733718192049,0.81058021,231.42,231.24,10.0]
[1733718192050,0.81058021,231.42,231.27,13.36356289]
[1733718192908,0.81058021,231.42,231.29,13.36356289]
[1733718193747,0.81058021,231.42,231.31,13.36356289]
[1733718193930,6.0708,231.48,231.31,13.36356289]
[1733718193931,0.81033589,231.47,231.31,13.36356289]
[1733718194623,0.81033589,231.47,231.3,20.01606289]
[1733718195017,23.902374,231.46,231.3,6.6525]
[1733718195217,0.81048759,231.45,231.3,6.6525]
[1733718195438,0.12549,231.43,231.3,6.6525]
[1733718195647,23.776884,231.42,231.3,6.6525]
[1733718195942,23.776884,231.4,231.3,6.6525]
[1733718196149,0.81045975,231.39,231.3,6.6525]
[1733718196346,0.81045975,231.39,231.27,13.36356289]
[1733718196516,0.81045975,231.39,231.26,13.36356289]
[1733718197141,23.776884,231.42,231.26,13.36356289]
[1733718197446,0.93598803,231.43,231.26,13.36356289]
[1733718197447,23.902374,231.4,231.26,13.36356289]
[1733718197656,23.776884,231.38,231.26,13.36356289]
[1733718197947,0.81055986,231.37,231.26,13.36356289]
[1733718198820,0.12549,231.38,231.26,13.36356289]
[1733718199051,0.81055599,231.37,231.26,13.36356289]
[1733718201157,0.81055599,231.37,231.27,13.36356289]
[1733718201451,6.0708,231.48,231.28,13.36356289]
[1733718201452,20.0,231.4,231.28,13.36356289]
[1733718201641,0.81044038,231.39,231.28,13.36356289]
[1733718202348,0.81044038,231.39,231.26,13.36356289]
[1733718205446,0.81044038,231.39,231.25,6.2781]
[1733718205648,0.81044038,231.39,231.24,10.0]
[1733718205649,23.902374,231.38,231.24,10.0]
[1733718205953,0.12549,231.35,231.24,10.0]
[1733718206179,0.93616493,231.35,231.24,10.0]
[1733718207636,20.0,231.31,231.24,10.0]
[1733718207847,0.81080366,231.3,231.24,10.0]
[1733718208741,0.81079756,231.32,231.24,10.0]
[1733718209347,0.81065224,231.35,231.24,10.0]
[1733718212348,0.81065224,231.35,231.25,13.36356289]
[1733718212554,0.81054371,231.38,231.25,13.36356289]
[1733718212756,0.81054371,231.38,231.26,13.36356289]
[1733718214044,0.81054371,231.38,231.27,13.36356289]
[1733718214243,6.6641,231.45,231.24,10.0]
[1733718214244,0.81040152,231.44,231.28,13.36356289]
[1733718214655,0.81040152,231.44,231.25,10.8104]
[1733718214956,0.81040152,231.44,231.27,13.36356289]
[1733718215649,20.0,231.42,231.27,13.36356289]
[1733718215957,0.81042374,231.41,231.27,13.36356289]
[1733718216558,0.81042374,231.41,231.3,13.36356289]
[1733718216739,0.81042374,231.41,231.29,13.36356289]
[1733718217139,0.81042374,231.41,231.3,13.36356289]
[1733718217350,6.6641,231.45,231.3,13.36356289]
[1733718217351,0.81033667,231.44,231.3,13.36356289]
[1733718217561,0.81033667,231.44,231.29,13.36356289]
[1733718217854,0.81033667,231.44,231.31,13.36356289]
[1733718218358,0.81033667,231.44,231.31,14.96286289]
[1733718219264,0.81033667,231.44,231.31,1.5993]
[1733718219556,0.12549,231.43,231.31,1.5993]
[1733718219850,0.81040358,231.42,231.31,1.5993]
[1733718220668,0.81040007,231.41,231.31,1.5993]
[1733718222845,0.81038717,231.43,231.31,14.96286289]
[1733718223050,0.81038717,231.43,231.33,13.36356289]
[1733718223241,0.81038717,231.43,231.31,1.5993]
[1733718223242,23.776884,231.48,231.34,13.36356289]
[1733718223544,0.810193,231.47,231.34,13.36356289]
[1733718224445,20.0,231.47,231.34,13.36356289]
[1733718224649,0.81019119,231.46,231.33,13.36356289]
[1733718227144,0.81019119,231.46,231.31,1.5993]
[1733718227330,23.902374,231.45,231.31,1.5993]
[1733718227536,0.12549,231.43,231.31,1.5993]
[1733718228857,0.81035903,231.44,231.31,1.5993]
[1733718229059,20.0,231.46,231.31,14.96286289]
[1733718229060,0.81024989,231.45,231.31,14.96286289]
[1733718229261,0.81024989,231.45,231.32,13.36356289]
[1733718230266,0.81024989,231.45,231.31,14.96286289]
[1733718230873,0.12549,231.44,231.31,1.5993]
[1733718231037,0.81036954,231.43,231.31,1.5993]
[1733718232134,0.81036728,231.42,231.31,1.5993]
[1733718232765,0.81036728,231.42,231.28,8.61517341]
[1733718233160,0.93588055,231.44,231.29,8.61517341]
[1733718233665,0.81039055,231.44,231.31,8.61517341]
[1733718234037,0.8102604,231.45,231.31,8.61517341]
[1733718234764,0.8102604,231.45,231.3,8.61517341]
[1733718236455,0.8102604,231.45,231.31,8.61517341]
[1733718236765,23.902374,231.44,231.29,8.61517341]
[1733718236939,0.81036376,231.43,231.29,8.61517341]
[1733718238254,0.81036376,231.43,231.27,19.42477341]
[1733718238459,0.12549,231.41,231.26,1.6023]
[1733718238659,0.93601361,231.41,231.26,1.6023]
[1733718240152,23.776884,231.4,231.26,1.6023]
[1733718240360,0.81055578,231.39,231.26,1.6023]
[1733718240603,0.12549,231.38,231.26,1.6023]
[1733718241573,0.12549,231.38,231.23,8.61517341]
[1733718242055,0.12549,231.38,231.2,8.1174]
[1733718242056,0.81060243,231.37,231.2,8.1174]
[1733718242373,23.902374,231.36,231.21,8.61517341]
[1733718242577,0.81064701,231.35,231.21,8.61517341]
[1733718242877,0.81064701,231.35,231.22,8.61517341]
[1733718243065,0.81064701,231.35,231.21,8.61517341]
[1733718244179,6.39149,231.33,231.19,0.4972072]
[1733718244480,0.81079062,231.32,231.19,0.4972072]
[1733718244649,0.81079062,231.32,231.19,9.11238061]
[1733718245161,0.81079062,231.32,231.2,8.61517341]
[1733718245366,0.81079062,231.32,231.21,8.61517341]
[1733718246386,0.81079062,231.32,231.19,0.4972072]
[1733718246387,0.81079062,231.32,231.2,8.61517341]
[1733718247579,6.266,231.33,231.22,8.61517341]
[1733718247783,7.05038148,231.38,231.24,8.61517341]
[1733718247956,7.05038148,231.38,231.23,8.61517341]
[1733718248293,7.05038148,231.38,231.21,8.61517341]
[1733718248454,7.05038148,231.38,231.22,8.61517341]
[1733718248655,7.05038148,231.38,231.23,8.61517341]
[1733718249183,7.05038148,231.38,231.22,8.61517341]
[1733718249363,0.12549,231.37,231.2,10.8131]
[1733718249562,0.81066809,231.36,231.2,19.42827341]
[1733718250159,0.81066809,231.36,231.21,8.61517341]
[1733718251465,20.0,231.35,231.2,10.8131]
[1733718251781,0.12549,231.33,231.2,8.61517341]
[1733718251986,0.81068346,231.34,231.21,8.61517341]
[1733718252159,0.81068346,231.34,231.2,8.61517341]
[1733718253180,0.12549,231.33,231.19,9.11238061]
[1733718253684,0.12549,231.33,231.19,0.4972072]
[1733718253881,0.81078515,231.32,231.19,0.4972072]
[1733718254877,0.12549,231.31,231.19,0.4972072]
[1733718261894,0.81078515,231.32,231.21,8.61517341]
[1733718262067,20.0,231.35,231.2,8.61517341]
[1733718262068,0.81070339,231.34,231.2,8.61517341]
[1733718262270,0.81070339,231.34,231.21,8.61517341]
[1733718263376,0.81070339,231.34,231.2,8.61517341]
[1733718264505,23.902374,231.33,231.19,0.4972072]
[1733718264796,0.12549,231.31,231.19,0.4972072]
[1733718267111,6.3663,231.3,231.19,0.4972072]
[1733718267393,0.81082614,231.29,231.19,0.4972072]
[1733718271193,20.0,231.27,231.19,0.4972072]
[1733718271406,0.810969,231.26,231.19,0.4972072]
[1733718272400,23.902374,231.25,231.19,0.4972072]
[1733718272606,0.81102619,231.24,231.19,0.4972072]
[1733718273189,0.81096896,231.26,231.13,8.61238061]
[1733718273394,0.81096896,231.26,231.09,1.5719]
[1733718273576,0.12549,231.25,231.09,3.28855695]
[1733718273775,0.81102184,231.24,231.12,8.61517341]
[1733718274183,0.81102184,231.24,231.09,1.5719]
[1733718274387,0.81102184,231.24,231.12,8.61517341]
[1733718274589,23.902374,231.23,231.09,1.5719]
[1733718274884,0.81115266,231.22,231.09,1.5719]
[1733718275186,0.81115266,231.22,231.04,17.2767]
[1733718275187,0.12549,231.2,231.04,17.2767]
[1733718275383,0.93672887,231.2,231.04,17.2767]
[1733718275788,0.93672887,231.2,231.06,8.61517341]
[1733718276181,0.93672887,231.2,231.05,8.61517341]
[1733718278988,0.93672887,231.2,231.06,8.61517341]
[1733718279307,0.81123887,231.2,231.06,8.61517341]
[1733718279524,0.81123887,231.2,231.08,8.61517341]
[1733718279681,0.81123887,231.2,231.07,8.61517341]
[1733718281216,0.81123887,231.2,231.06,8.61517341]
[1733718281384,0.81123887,231.2,231.04,10.8205]
[1733718281587,0.12549,231.19,231.04,10.8205]
[1733718281793,0.12549,231.19,231.05,8.61517341]
[1733718282185,0.12549,231.19,231.06,8.61517341]
[1733718282718,0.81123887,231.2,231.08,8.61517341]
[1733718284292,0.81123887,231.2,231.1,8.61517341]
[1733718284491,0.81123887,231.2,231.08,8.61517341]
[1733718285017,0.81123887,231.2,231.09,8.61517341]
[1733718286986,0.81123887,231.2,231.1,8.61517341]
[1733718287889,0.81123887,231.2,231.07,8.61517341]
[1733718288083,0.81123887,231.2,231.08,8.61517341]
[1733718288300,0.81123887,231.2,231.09,8.61517341]
[1733718289325,0.12549,231.19,231.04,8.61517341]
[1733718289484,20.0,231.18,231.04,8.61517341]
[1733718289687,0.81123325,231.17,231.07,8.61517341]
[1733718289990,0.8111736,231.2,231.08,8.61517341]
[1733718291201,0.8111736,231.2,231.07,8.61517341]
[1733718291593,0.8111736,231.2,231.06,8.61517341]
[1733718292416,0.8111736,231.2,231.07,8.61517341]
[1733718292607,0.8111736,231.2,231.03,10.8211]
[1733718293197,20.0,231.18,231.04,8.61517341]
[1733718293408,0.81123623,231.17,231.04,8.61517341]
[1733718293725,0.81123623,231.17,231.02,1.6513]
[1733718293900,20.0,231.16,231.02,1.6513]
[1733718294088,6.501,231.14,230.99,10.8228]
[1733718294323,0.81130687,231.13,230.99,10.8228]
[1733718294522,0.81130687,231.13,231.0,8.61517341]
[1733718295617,0.81130687,231.13,230.96,0.4972072]
[1733718295915,23.902374,231.1,230.96,0.4972072]
[1733718296115,0.12549,231.08,230.96,0.4972072]
[1733718296417,0.12549,231.06,230.96,0.4972072]
[1733718296719,6.501,231.05,230.96,0.4972072]
[1733718296939,0.8117299,231.04,230.96,0.4972072]
[1733718299923,6.501,231.05,230.97,8.61517341]
[1733718301509,6.501,231.05,230.96,9.11238061]
[1733718302920,6.501,231.05,230.97,8.61517341]
[1733718303727,6.501,231.05,230.98,8.61517341]
[1733718304229,6.501,231.05,230.96,9.11238061]
[1733718304645,6.501,231.05,230.96,0.4972072]
[1733718305722,0.81163686,231.04,230.96,0.4972072]
[1733718307243,6.501,231.05,230.98,8.61517341]
[1733718307860,0.8116551,231.13,230.98,8.61517341]
[1733718307861,6.61879,231.12,230.98,8.61517341]
[1733718308056,0.81153425,231.11,230.99,8.61517341]
[1733718308354,0.81153425,231.11,230.96,0.4972072]
[1733718308355,0.81153425,231.11,231.01,8.61517341]
[1733718308554,6.4933,231.12,231.03,8.61517341]
[1733718308726,6.4933,231.12,230.96,11.3212072]
[1733718308727,6.4933,231.12,231.04,8.61517341]
[1733718309633,6.4933,231.12,231.03,8.61517341]
[1733718310346,6.4933,231.12,231.04,8.61517341]
[1733718310549,20.0,231.17,231.04,8.61517341]
[1733718310853,20.0,231.17,230.99,10.8226]
[1733718310854,6.5512,231.18,231.08,8.61517341]
[1733718311560,0.81117557,231.17,231.08,8.61517341]
[1733718311746,6.5512,231.18,231.1,8.61517341]
[1733718312533,6.5512,231.26,231.14,8.61517341]
[1733718312738,0.81093643,231.25,231.14,8.61517341]
[1733718312957,6.5512,231.26,231.09,1.5136]
[1733718312958,6.5512,231.26,231.16,8.61517341]
[1733718313540,6.5512,231.26,231.1,10.8174]
[1733718313541,6.5512,231.26,231.18,8.61517341]